[Event "13th Palmanova Festival A 2024"]
[Site "Palmanova"]
[Date "2024.12.29"]
[Round "3.12"]
[White "Reza, Wojciech"]
[Black "Stankovic, Milos"]
[Result "1/2-1/2"]
[ECO "B38"]
[WhiteElo "2227"]
[BlackElo "2462"]
[Annotator "TA"]
[PlyCount "83"]
[EventDate "2024.12.27"]
[EventCountry "ITA"]
[SourceTitle "playchess.com"]
[Source "ChessBase"]
[SourceQuality "1"]
[TimeControl "6000+30"]

{[%evp 20,83,35,35,56,42,79,90,84,95,92,73,106,24,42,49,45,42,26,51,40,28,24,23,33,33,40,0,0,3,51,44,44,58,126,133,298,302,322,332,265,116,233,102,100,96,161,148,123,40,406,486,486,456,431,412,412,0,0,0,0,0,0,0,0,0]} 1. Nf3 {[%emt 0:00:04]} Nf6 {[%emt 0:01:10]} 2. c4 {[%emt 0:00:21]} c5 {[%emt 0:01:42]} 3. Nc3 {[%emt 0:00:37]} Nc6 {[%emt 0:02:16]} 4. d4 {[%emt 0:04:55]} cxd4 {[%emt 0:02:34]} 5. Nxd4 {[%emt 0:00:18]} g6 {[%emt 0:00:38]} 6. e4 {[%emt 0:00:24]} Bg7 {[%emt 0:02:26]} 7. Be3 {[%emt 0:00:24]} O-O {[%emt 0:00:32]} 8. Be2 {[%emt 0:02:48]} d6 {[%emt 0:07:27]} 9. O-O {[%emt 0:03:01]} Bd7 {[%emt 0:00:34]} 10. Nc2 {[%emt 0:09:55]} Rc8 {[%emt 0:17:05]} 11. f3 {[%emt 0:02:40][%cal Bf2f3,Bf3f4][%mdl 32]} Nh5 {[%emt 0:10:31]} 12. Qd2 {[%emt 0:03:20]} Qa5 {[%emt 0:08:43] [#]} 13. b4 $1 {[%emt 0:14:53]} Qd8 {[%emt 0:05:06] White is better.} (13... Nxb4 $2 14. Nd5 Bxa1 15. Rxa1 $18 (15. Nxe7+ Kh8 $18)) 14. f4 {[%emt 0:02:37]} f5 {[%emt 0:04:58]} 15. Rad1 {[%emt 0:07:33]} Nf6 {[%emt 0:04:55]} 16. c5 {[%emt 0:40:17]} (16. b5 $16 Nb8 17. e5 (17. Bxa7 fxe4 18. Nd5 Be6 $18) 17... dxe5 18. fxe5) 16... fxe4 $11 {[%emt 0:06:35]} 17. b5 {[%emt 0:04:30]} Na5 {[%emt 0:02:36] [#]} 18. Nxe4 {[%emt 0:00:54]} Nxe4 {[%emt 0:10:14]} 19. Qd5+ {[%emt 0:00:03]} Kh8 {[%emt 0:00:17]} 20. Qxe4 {[%emt 0:00:03]} Bf5 {[%emt 0:00:31]} 21. Qa4 {[%emt 0:00:19]} Qc7 {[%emt 0:01:11]} 22. Nb4 {[%emt 0:03:36][%cal Bc2b4,Bb4d5,Bd5f6][%mdl 32] Nd5 is the strong threat.} dxc5 {[%emt 0:01:04]} 23. Nd5 {[%emt 0:00:15]} Qd8 {[%emt 0:00:05]} 24. g4 {[%emt 0:03:36] Against e6} Be6 {[%emt 0:04:35]} (24... Bd7 $11) 25. Qe4 $1 $36 {[%emt 0:00:09][%mdl 2048] White fights for an advantage.} Bg8 {[%emt 0:02:24]} 26. Nf6 {[%emt 0:02:42]} Qc7 {[%emt 0:02:59] Black is weak on the light squares} (26... exf6 $14 27. Rxd8 Rfxd8) 27. Rd7 $16 {[%emt 0:00:43] White has more active pieces.} Qb6 {[%emt 0:00:11]} (27... Rxf6 $16 {keeps fighting.} 28. Rxc7 (28. Qxe7 Qxd7 29. Qxd7 Rff8 $18) 28... Rxc7) 28. Nxg8 $18 {[%emt 0:00:46]} Rxg8 {[%emt 0:01:15]} 29. Rxe7 {[%emt 0:00:38]} (29. Qxe7 $2 Rce8 30. Bxc5 (30. Qf7 $2 Rxe3 31. Bf3 c4 $19) 30... Rxe7 $19) 29... a6 {[%emt 0:03:39]} 30. Rb1 {[%emt 0:01:31]} (30. f5 $18 {[%cal Of5f6] and White stays clearly on top. aiming for f6!} gxf5 31. Qxf5 (31. Rxf5 Qg6 $16)) 30... Qf6 {[%emt 0:00:49]} (30... axb5 $16 31. Bxb5 (31. Rxb5 Qd8 $16) 31... Nc6 32. Bxc6 Qxc6) 31. Rd1 {[%emt 0:01:10]} (31. Bd2 $18) 31... axb5 $16 {[%emt 0:01:01]} 32. Bxb5 {[%emt 0:00:51][%cal Be2b5,Bb5c4,Bc4g8][%mdl 32]} Qb2 {[%emt 0:00:30]} (32... Nc6 $16 33. Bxc6 (33. Rxb7 Nd4 $16) 33... Qxc6) 33. a4 $1 $18 {[%emt 0:00:36] And now Rdd7 would win.} Nc6 {[%emt 0:00:33] [#]} 34. Rxb7 {[%emt 0:00:30]} ({White should play} 34. Bxc6 $1 $16 Rxc6 35. g5) 34... Nd4 $2 {[%emt 0:03:01][%mdl 8192]} (34... Rge8 $14 35. Qf3 Nd4) 35. Bc4 {[%emt 0:00:28][%csl LRb2,LRg8]} Qa3 {[%emt 0:01:50]} 36. Bxg8 {[%emt 0:00:14][%cal Ob7g7] Threatens to win with Rxg7! This pair of bishops is nice.} Qxa4 {[%emt 0:00:04] [#]} 37. Rxd4 {[%emt 0:00:48]} cxd4 {[%emt 0:00:19] [#]} 38. Rxg7 $2 {[%emt 0:00:27]} Qd1+ $11 {[%emt 0:00:18] The position is equal.} 39. Kf2 $1 {[%emt 0:00:31]} (39. Kg2 Qxg4+ 40. Kf1 dxe3 (40... Kxg7 41. Bxd4+ Kf8 42. Kf2 $11) 41. Qxe3 Qd1+ (41... Kxg7 $2 42. Bb3 $19) (41... Rxg8 42. Rf7 $11) 42. Kg2 Qc2+ (42... Kxg7 43. Qe7+ Kxg8 44. Qe6+ Kf8 45. Qxc8+ Ke7 46. Qc5+ Ke6 47. Qe3+ Kf7 48. Kg3 $11) (42... Rxg8 43. Re7 $11) (42... Qg4+ $2 43. Kh1 $19) 43. Kh1 Qb1+ (43... Kxg7 44. Qe5+ Kxg8 45. Qe6+ Kf8 46. Qf6+ Kg8 47. Qe6+ Kf8 48. Qf6+ Kg8 49. Qe6+ $11) (43... Rxg8 44. Rxg8+ Kxg8 45. Qe8+ Kg7 46. Qe7+ Kh6 47. Qh4+ Kg7 48. Qe7+ Kg8 49. Qe8+ Kg7 50. Qe7+ $11) 44. Kg2 Qb2+ (44... Kxg7 45. Qe7+ Kxg8 46. Qe6+ Kf8 47. Qxc8+ Ke7 48. Qc7+ Ke8 49. Qc8+ Ke7 50. Qc7+ Ke6 51. Qe5+ Kd7 52. Qg7+ Ke6 53. Qe5+ Kf7 54. Qc7+ Ke8 55. Qc8+ Ke7 $11) 45. Kg3 Rc3 (45... Kxg7 46. Qe7+ Kxg8 47. Qe6+ Kg7 48. Qd7+ Kh6 49. Qh3+ Kg7 50. Qd7+ Kf8 51. Qxc8+ Kf7 52. Qd7+ Kg8 53. Qe8+ Kg7 54. Qe5+ Qxe5 55. fxe5 $11) (45... Qxg7 $2 46. Bc4 $19) 46. Rxh7+ Kxg8 $19) 39... dxe3+ {[%emt 0:00:19]} (39... Kxg7 $2 {loses.} 40. Bxd4+ Kf8 41. Kg3 $18 (41. Bxh7 Qxg4 42. Bxg6 Rc2+ 43. Qxc2 Qxf4+ 44. Ke2 Qxh2+ 45. Bf2 Qe5+ 46. Qe4 Qb5+ 47. Kf3 Qb3+ 48. Kf4 Qb8+ 49. Kg4 Qc8+ 50. Kh5 Qh3+ 51. Kg5 Qd7)) 40. Kg3 $1 {[%emt 0:00:23]} Qe1+ {[%emt 0:02:39]} 41. Kh3 {[%emt 0:00:26]} Kxg7 {[%emt 0:00:46]} 42. Qb7+ {[%emt 0:00:00] Weighted Error Value: White=0.32/Black=0.42.  Loses game:     	---       	Black=2      Missed win:     	White=1     	---        Mistake:       	White=4     	Black=4      Inaccurate:     	---       	Black=2      OK:         	White=12    	Black=11     Best:        	White=4     	Black=5      Strong:       	White=4     	---        Brilliant:      	White=3     	---} 1/2-1/2

[Event "13th Palmanova Festival A 2024"]
[Site "Palmanova"]
[Date "2024.12.29"]
[Round "3.13"]
[White "Marn, Jan"]
[Black "Jordan Martinez, Miguel"]
[Result "1-0"]
[ECO "D46"]
[WhiteElo "2400"]
[BlackElo "2123"]
[Annotator "TA"]
[PlyCount "49"]
[EventDate "2024.12.27"]
[EventCountry "ITA"]
[SourceTitle "playchess.com"]
[Source "ChessBase"]
[SourceQuality "1"]
[TimeControl "6000+30"]

{[%evp 14,49,27,18,29,20,17,13,16,16,33,34,34,23,112,116,194,200,254,267,271,276,264,263,293,293,380,382,1145,1116,1143,1135,1133,1118,1215,1158,1006,999]} 1. d4 {[%emt 0:09:42]} d5 {[%emt 0:00:02]} 2. c4 {[%emt 0:00:30]} c6 {[%emt 0:00:06]} 3. Nf3 {[%emt 0:00:22]} Nf6 {[%emt 0:00:16]} 4. e3 {[%emt 0:00:05]} e6 {[%emt 0:01:58]} 5. Bd3 {[%emt 0:04:34]} Nbd7 {[%emt 0:02:13]} 6. O-O {[%emt 0:00:10]} Bd6 {[%emt 0:01:46]} 7. Nc3 {[%emt 0:01:09]} dxc4 {[%emt 0:12:00]} 8. Bxc4 {[%emt 0:00:04]} b5 {[%emt 0:00:08]} 9. Bd3 {[%emt 0:00:08]} a6 {[%emt 0:03:11]} 10. e4 {[%emt 0:08:26]} e5 {[%emt 0:06:16]} 11. h3 {[%emt 0:18:46]} exd4 {[%emt 0:33:07]} 12. Nxd4 {[%emt 0:01:31]} Ne5 {[%emt 0:00:05]} 13. Be2 {[%emt 0:17:07][%cal Bd3e2,Be2f3,Bf3e4][%mdl 32]} b4 {[%emt 0:03:34]} (13... O-O $1 $11) 14. Na4 $16 {[%emt 0:00:30]} Nxe4 {[%emt 0:14:32]} (14... c5 $16) 15. f4 $18 {[%emt 0:03:08][%cal Bf2f4,Bf4f5,Bf5g6,Bg6f7][%mdl 32]} Ng6 {[%emt 0:04:05]} 16. Bf3 $1 {[%emt 0:00:51]} (16. Nxc6 Qc7 17. Bf3 Bb7 18. Bxe4 Bxc6 19. Bxc6+ Qxc6 $14) 16... f5 {[%emt 0:00:25][%cal Bf7f5,Bf5e4][%mdl 32] [#]} 17. Bxe4 $1 {[%emt 0:02:38]} ({Less strong is} 17. Nxc6 Qc7 $16) 17... fxe4 {[%emt 0:00:21] [#]} 18. f5 $1 {[%emt 0:00:05]} Ne5 {[%emt 0:02:31]} 19. Qh5+ {[%emt 0:00:34]} Nf7 {[%emt 0:00:19]} 20. Ne6 {[%emt 0:01:04] Wards off Bc5+} ({Not} 20. Nxc6 Qd7 $15) 20... g6 $2 {[%emt 0:04:43]} (20... Qf6 21. Bg5 Qe5) 21. fxg6 {[%emt 0:01:59]} Bxe6 {[%emt 0:01:41]} 22. gxf7+ {[%emt 0:00:07]} Kd7 {[%emt 0:00:19]} 23. Be3 {[%emt 0:00:28] Hoping for Rad1.} Qe7 {[%emt 0:05:21]} 24. Nb6+ {[%emt 0:01:20]} Kc7 {[%emt 0:00:02]} 25. Qa5 {[%emt 0:00:34]} 1-0

[Event "13th Palmanova Festival A 2024"]
[Site "Palmanova"]
[Date "2024.12.29"]
[Round "3.14"]
[White "Adharsh K"]
[Black "Mazzini, Mauro"]
[Result "1-0"]
[ECO "B90"]
[WhiteElo "2235"]
[BlackElo "2069"]
[Annotator "RC"]
[PlyCount "77"]
[EventDate "2024.12.27"]
[EventCountry "ITA"]
[SourceTitle "playchess.com"]
[Source "ChessBase"]
[SourceQuality "1"]
[TimeControl "6000+30"]

1. e4 {[%emt 0:00:22]} c5 {[%emt 0:02:09]} 2. Nf3 {[%emt 0:00:12]} d6 {[%emt 0:00:44]} 3. d4 {[%emt 0:00:08]} cxd4 {[%emt 0:00:04]} 4. Nxd4 {[%emt 0:00:06]} Nf6 {[%emt 0:00:07]} 5. Nc3 {[%emt 0:00:08]} a6 {[%emt 0:00:09]} 6. Be3 {[%emt 0:00:38]} e5 {[%emt 0:00:50]} 7. Nb3 {[%emt 0:00:17]} Be6 {[%emt 0:00:10]} 8. f3 {[%emt 0:00:13]} h5 {[%emt 0:00:40]} 9. Qd2 {[%emt 0:00:13]} Nbd7 {[%emt 0:00:48]} 10. Nd5 {[%emt 0:05:38]} Bxd5 {[%emt 0:01:27]} 11. exd5 {[%emt 0:00:04]} g6 {[%emt 0:05:00]} 12. O-O-O {[%emt 0:00:20]} Bg7 {[%emt 0:02:05]} 13. Kb1 {[%emt 0:06:59]} b6 {[%emt 0:08:35]} 14. Be2 {[%emt 0:09:19]} Qc7 {[%emt 0:03:51]} 15. h4 {[%emt 0:01:12]} Nc5 {[%emt 0:08:12]} 16. c3 {[%emt 0:18:44]} O-O {[%emt 0:41:20]} 17. g4 {[%emt 0:01:07]} a5 {[%emt 0:00:06]} 18. Nxc5 {[%emt 0:06:25]} bxc5 {[%emt 0:00:11]} 19. Bg5 {[%emt 0:08:37]} hxg4 {[%emt 0:18:05]} 20. Bxf6 {[%emt 0:00:20]} Bxf6 {[%emt 0:00:21]} 21. Rdg1 {[%emt 0:04:25]} Rab8 {[%emt 0:04:45]} 22. Rxg4 {[%emt 0:00:28]} Rb7 {[%emt 0:02:51]} 23. h5 {[%emt 0:00:44]} Rfb8 {[%emt 0:00:46]} 24. b3 {[%emt 0:03:23]} g5 {[%emt 0:01:57]} 25. h6 {[%emt 0:03:01]} a4 {[%emt 0:01:55]} 26. Rxa4 {[%emt 0:01:13]} Kf8 {[%emt 0:01:11]} 27. h7 {[%emt 0:00:20]} Ke7 {[%emt 0:00:10]} 28. Qc2 {[%emt 0:01:40]} Ra7 {[%emt 0:01:17]} 29. Rxa7 {[%emt 0:00:41]} Qxa7 {[%emt 0:00:03]} 30. Bc4 {[%emt 0:00:46]} Qa5 {[%emt 0:01:45]} 31. Kb2 {[%emt 0:03:00]} Ra8 {[%emt 0:00:06]} 32. a4 {[%emt 0:00:06]} Rb8 {[%emt 0:00:18]} 33. Qf5 {[%emt 0:01:53]} e4 {[%emt 0:02:30]} 34. Qxe4+ {[%emt 0:00:04]} Be5 {[%emt 0:00:05]} 35. Qd3 {[%emt 0:01:55]} Qd8 {[%emt 0:03:27]} 36. Qf5 {[%emt 0:00:31]} Qa5 {[%emt 0:00:00]} 37. Qxg5+ {[%emt 0:00:24]} Kd7 {[%emt 0:00:00]} 38. Qf5+ {[%emt 0:00:20]} Ke7 {[%emt 0:00:00]} 39. Qd3 {[%emt 0:00:56]} 1-0